bitfinex/quotes_SOLUSD_20251019
["timestamp","ask_amount","ask_price","bid_price","bid_amount"]
[1760878058477,0.66214641,188.78,188.69,5.62968555]
[1760878058706,0.66,188.75,188.69,5.62968555]
[1760878060203,1.32214641,188.78,188.7,0.33]
[1760878060411,22.88,188.77,188.7,27.23]
[1760878060704,23.54,188.77,188.7,27.23]
[1760878060911,0.66,188.77,188.71,0.33]
[1760878061483,23.54,188.79,188.72,5.29885544]
[1760878061693,22.88,188.8,188.73,0.33]
[1760878062209,23.54,188.8,188.73,0.33]
[1760878062384,0.66,188.8,188.73,0.33]
[1760878062808,0.66,188.8,188.74,5.29829394]
[1760878063817,0.66,188.8,188.74,32.19829394]
[1760878064734,1.34193603,188.84,188.75,0.33]
[1760878064924,1.34193603,188.84,188.75,16.25145415]
[1760878065218,1.34193603,188.84,188.76,0.33]
[1760878065624,22.88,188.83,188.76,0.33]
[1760878066600,23.56,188.83,188.77,5.29745192]
[1760878067324,22.88,188.84,188.78,27.23]
[1760878067502,22.88,188.84,188.79,0.33]
[1760878067703,23.56,188.84,188.79,0.33]
[1760878067922,22.88,188.84,188.78,26.9]
[1760878068106,0.68,188.83,188.78,26.9]
[1760878068318,0.68,188.83,188.78,27.23]
[1760878068503,22.88,188.84,188.78,27.23]
[1760878068704,0.68,188.83,188.79,5.29689072]
[1760878069825,0.66190097,188.85,188.79,5.29689072]
[1760878070034,0.68,188.82,188.79,5.29689072]
[1760878070330,0.66,188.84,188.79,5.29689072]
[1760878070516,28.17502998,188.86,188.79,5.29689072]
[1760878070834,0.66,188.83,188.79,5.29689072]
[1760878071208,0.66,188.83,188.79,5.62689072]
[1760878072813,0.66,188.83,188.79,5.29689072]
[1760878073006,28.17502998,188.86,188.79,5.29689072]
[1760878073205,0.66,188.85,188.79,5.29689072]
[1760878073424,28.17502998,188.86,188.79,5.29689072]
[1760878073425,0.66,188.84,188.79,5.29689072]
[1760878073628,0.66,188.83,188.79,5.29689072]
[1760878074326,0.66,188.82,188.79,5.29689072]
[1760878075024,0.66,188.84,188.79,5.29689072]
[1760878075233,0.66,188.84,188.79,5.62689072]
[1760878075416,0.66,188.83,188.79,5.29689072]
[1760878075613,0.66,188.83,188.79,5.62689072]
[1760878075924,0.66,188.84,188.79,5.62689072]
[1760878080832,0.66,188.83,188.79,5.29689072]
[1760878081131,0.66,188.82,188.78,32.19713195]
[1760878082243,0.66,188.82,188.78,32.52713195]
[1760878082839,0.66,188.82,188.78,32.19713195]
[1760878083027,0.66,188.82,188.78,32.52713195]
[1760878083932,23.54,188.84,188.78,45.77006022]
[1760878084119,0.66,188.83,188.78,45.77006022]
[1760878084723,22.88,188.84,188.79,0.33]
[1760878084920,0.66,188.83,188.79,0.33]
[1760878085126,0.66,188.83,188.78,45.77006022]
[1760878085311,22.88,188.84,188.78,45.77006022]
[1760878085516,0.66,188.83,188.78,45.77006022]
[1760878086441,22.88,188.84,188.78,45.44006022]
[1760878086739,0.66,188.82,188.78,45.44006022]
[1760878087348,23.54,188.84,188.78,45.77006022]
[1760878087521,0.66,188.84,188.78,45.44006022]
[1760878087726,0.66,188.84,188.78,45.77006022]
[1760878088341,23.54,188.84,188.78,45.77006022]
[1760878089623,23.54,188.84,188.79,0.33]
[1760878089828,23.54,188.84,188.8,26.88]
[1760878090028,0.66,188.83,188.8,26.88]
[1760878090646,5.29465184,188.87,188.81,5.29632964]
[1760878090950,0.68,188.85,188.81,5.29632964]
[1760878091534,0.68,188.84,188.81,5.29632964]
[1760878092247,22.88,188.87,188.82,0.33]
[1760878092622,23.56,188.87,188.82,0.33]
[1760878092826,22.88,188.87,188.82,0.33]
[1760878093035,23.56,188.87,188.82,0.33]
[1760878093243,23.56,188.87,188.83,26.88]
[1760878093844,23.56,188.87,188.83,32.17555183]
[1760878096058,22.88,188.87,188.83,32.17555183]
[1760878096250,0.7,188.86,188.83,32.17555183]
[1760878096554,0.7,188.88,188.83,32.17555183]
[1760878096856,22.88,188.88,188.84,0.33]
[1760878097041,0.7,188.87,188.83,32.17555183]
[1760878097243,0.7,188.86,188.81,13.23375798]
[1760878097446,0.7,188.85,188.8,26.88]
[1760878097650,0.7,188.84,188.8,26.88]
[1760878097854,0.7,188.85,188.8,27.21]
[1760878098164,0.7,188.84,188.81,5.29632964]
[1760878102561,0.7,188.83,188.81,5.29632964]
[1760878103060,0.7,188.82,188.78,61.4]
[1760878103356,0.7,188.81,188.78,26.88]
[1760878103541,0.7,188.8,188.78,26.88]
[1760878103731,0.7,188.79,188.78,26.88]
[1760878104138,0.7,188.79,188.76,5.29773257]
[1760878104436,0.7,188.79,188.76,32.17773257]
[1760878104835,23.54190097,188.85,188.76,45.42206399]
[1760878104836,0.7,188.83,188.76,45.42206399]
[1760878105056,0.7,188.83,188.77,0.33]
[1760878105447,23.58,188.85,188.77,0.33]
[1760878105856,23.58,188.85,188.78,26.88]
[1760878106054,0.7,188.84,188.78,27.21]
[1760878106259,0.7,188.84,188.79,5.29689072]
[1760878106439,0.7,188.84,188.79,5.62689072]
[1760878107664,0.7,188.83,188.79,5.29689072]
[1760878107966,0.7,188.82,188.79,5.29689072]
[1760878108460,0.7,188.82,188.78,40.12274332]
[1760878108461,0.7,188.81,188.75,13.24441495]
[1760878108757,0.7,188.81,188.76,32.50773257]
[1760878109158,0.7,188.81,188.76,32.17773257]
[1760878109345,28.83711389,188.85,188.77,0.33]
[1760878109552,0.7,188.84,188.77,0.33]
[1760878110547,0.7,188.84,188.78,5.29717131]
[1760878110741,0.7,188.83,188.78,5.29717131]
[1760878111148,0.7,188.83,188.78,5.62717131]
[1760878111642,0.7,188.83,188.79,26.88]
[1760878111943,22.88,188.85,188.79,27.21]
[1760878112144,0.7,188.84,188.79,27.21]
[1760878112345,0.7,188.83,188.79,27.21]
[1760878112660,0.7,188.83,188.8,5.29661016]
[1760878113162,22.88,188.85,188.81,0.33]
[1760878113465,0.7,188.87,188.82,26.88]
[1760878113765,0.7,188.92,188.83,0.33]
[1760878113982,0.7,188.92,188.83,11.20647521]
[1760878114180,23.58,188.92,188.84,11.20647521]
[1760878114478,0.7,188.94,188.86,10.87647521]
[1760878114675,23.58,188.94,188.87,18.86126488]
[1760878114875,23.58,188.94,188.88,0.33]
[1760878115049,23.58,188.94,188.89,26.88]
[1760878115250,0.7,188.94,188.89,27.21]
[1760878115768,23.08,188.95,188.89,26.88]
[1760878115972,0.2,188.95,188.9,0.33]
[1760878116279,0.2,188.95,188.91,0.33]
[1760878116778,0.2,188.95,188.92,5.29324581]
[1760878117794,0.7,188.94,188.9,15.60469597]
[1760878117963,0.7,188.93,188.9,26.88]
[1760878118166,0.7,188.92,188.9,26.88]
[1760878118492,0.7,188.91,188.87,5.29464711]
[1760878118667,0.7,188.9,188.87,32.17464711]
[1760878118862,0.7,188.89,188.87,32.17464711]
[1760878119375,0.7,188.91,188.87,32.17464711]
[1760878119682,0.7,188.9,188.87,32.17464711]
[1760878120470,22.88,188.92,188.87,26.88]
[1760878120471,0.7,188.89,188.87,26.88]
[1760878120673,0.7,188.88,188.87,26.88]
[1760878120976,0.7,188.88,188.84,26.88]
[1760878121169,28.83493537,188.92,188.84,26.88]
[1760878121367,0.7,188.87,188.84,26.88]
[1760878121762,28.83493537,188.92,188.84,26.88]
[1760878121968,0.7,188.91,188.84,26.88]
[1760878122171,1.36172578,188.9,188.84,26.88]
[1760878122381,0.7,188.89,188.84,26.88]
[1760878122581,0.7,188.88,188.85,5.29520783]
[1760878122776,0.7,188.87,188.85,5.29520783]
[1760878123681,0.7,188.86,188.84,32.17547072]
[1760878123860,22.88,188.87,188.84,26.88]
[1760878124060,0.72,188.85,188.84,26.88]
[1760878125384,0.72,188.87,188.84,26.88]
[1760878125681,0.72,188.86,188.84,26.88]
[1760878127189,0.72,188.85,188.84,26.88]
[1760878129088,0.72,188.85,188.82,26.88]
[1760878130288,0.72,188.85,188.83,5.29576868]
[1760878130494,0.72,188.84,188.82,26.88]
[1760878131387,5.95618946,188.88,188.82,32.17603055]
[1760878131684,0.72,188.87,188.82,32.17603055]
[1760878132066,0.72,188.86,188.82,32.17603055]
[1760878132267,0.72,188.85,188.82,32.17603055]
[1760878135995,0.72,188.85,188.81,5.29632964]
[1760878136194,0.72,188.85,188.82,26.88]
[1760878137288,0.72,188.85,188.83,5.29576868]
[1760878137986,22.88,188.87,188.83,5.62576868]
[1760878138495,0.72,188.9,188.84,0.33]
[1760878138669,23.6,188.89,188.85,26.88]
[1760878139199,0.72,188.88,188.85,32.1750657]
[1760878139394,0.72,188.92,188.86,0.33]
[1760878140709,23.5416207,188.93,188.86,0.33]
[1760878141010,0.2,188.95,188.86,11.20647521]
[1760878141297,0.2,188.95,188.89,10.87647521]
[1760878141502,0.2,188.95,188.9,26.88]
[1760878141698,0.2,188.95,188.9,27.21]
[1760878141907,0.2,188.95,188.91,0.33]
[1760878142079,0.2,188.95,188.92,0.33]
[1760878142400,0.2,188.95,188.93,26.86]
[1760878143508,0.2,188.95,188.94,5.2926855]
[1760878144804,0.92,188.95,188.9,5.29380624]
[1760878144978,0.2,188.95,188.91,26.86]
[1760878145178,0.92,188.95,188.91,26.86]
[1760878145496,0.2,188.95,188.92,5.62324581]
[1760878146187,0.2,188.95,188.92,5.29324581]
[1760878146501,0.2,188.95,188.93,0.33]
[1760878146683,0.2,188.95,188.94,26.86]
[1760878146883,0.2,188.95,188.94,27.19]
[1760878147197,0.2,188.95,188.94,26.86]
[1760878147582,0.2,188.95,188.94,32.1526855]
[1760878147790,0.2,188.95,188.94,5.2926855]
[1760878147998,0.92,188.95,188.93,26.86]
[1760878148203,0.72,188.94,188.92,5.29297481]
[1760878148783,0.2,188.95,188.92,5.29297481]
[1760878148986,0.2,188.95,188.93,0.33]
[1760878149193,0.2,188.95,188.94,26.86]
[1760878149878,0.2,188.95,188.94,32.4826855]
[1760878150285,0.2,188.96,188.94,43.35916071]
[1760878150503,0.2,188.96,188.95,0.33]
[1760878150896,0.2,188.96,188.94,32.1526855]
[1760878151200,0.2,188.96,188.95,26.86]
[1760878152001,0.2,188.96,188.95,32.15240539]
[1760878152201,0.2,188.96,188.94,26.86]
[1760878153104,0.2,188.96,188.95,0.33]
[1760878153904,0.2,189.0,188.95,18.85341888]
[1760878154103,0.2,189.0,188.96,0.33]
[1760878154403,0.2,189.0,188.97,26.86]
[1760878155304,0.2,189.0,188.98,5.29156524]
[1760878155496,0.2,189.0,188.98,5.62156524]
[1760878155897,0.2,189.0,188.98,5.29156524]
[1760878156708,0.88,189.0,188.98,5.29156524]
[1760878156889,0.2,189.0,188.98,5.29156524]
[1760878157984,0.88,189.0,188.98,5.29156524]
[1760878158216,0.2,189.0,188.98,5.29156524]
[1760878159607,0.2,189.0,188.98,5.62156524]
[1760878160598,0.2,189.0,188.98,5.29156524]
[1760878162012,0.88,189.0,188.98,5.29156524]
[1760878162196,0.68,188.99,188.98,5.29156524]
[1760878162397,0.68,188.99,188.98,32.15156524]
[1760878162793,0.68,188.99,188.94,13.23127053]
[1760878162996,0.68,188.98,188.94,5.2926855]
[1760878163199,0.88,189.0,188.95,26.86]
[1760878163411,0.88,189.0,188.96,5.29212531]
[1760878163613,0.68,188.99,188.96,5.29212531]
[1760878164106,0.2,189.0,188.96,5.29212531]
[1760878164416,0.2,189.0,188.97,0.33]
[1760878164615,0.2,189.0,188.98,26.84]
[1760878165203,0.68,188.99,188.98,26.84]
[1760878166422,0.68,188.99,188.97,26.84]
[1760878166729,0.2,189.0,188.97,26.84]
[1760878167712,0.88,189.0,188.97,26.84]
[1760878167910,0.88,189.0,188.98,5.29156524]
[1760878168229,0.2,189.0,188.98,5.29156524]
[1760878171613,0.88,189.0,188.98,66.69156524]
[1760878172204,0.2,189.0,188.98,66.69156524]
[1760878172523,0.68,188.99,188.98,61.4]
[1760878173128,0.88,189.0,188.98,61.4]
[1760878173516,0.68,188.99,188.98,61.4]
[1760878174130,0.2,189.0,188.98,61.4]
[1760878174636,0.68,188.99,188.98,61.4]
[1760878177415,0.68,188.99,188.97,32.1317475]
[1760878179620,0.2,189.0,188.97,32.1317475]
[1760878179938,0.68,188.98,188.97,32.1317475]
[1760878180238,0.68,188.98,188.95,61.4]
[1760878180419,0.68,188.97,188.95,88.24]
[1760878180614,0.68,188.97,188.95,26.84]
[1760878180833,0.68,188.96,188.95,26.84]
[1760878182140,0.68,188.96,188.95,32.13240539]
[1760878182325,0.68,188.98,188.95,32.13240539]
[1760878182640,0.68,188.97,188.95,32.13240539]
[1760878183039,0.68,188.96,188.95,26.84]
[1760878183246,0.68,188.96,188.91,5.29352601]
[1760878183420,0.68,188.95,188.92,32.13314257]
[1760878183935,0.72,188.94,188.92,32.13314257]
[1760878185540,0.72,188.93,188.84,61.4]
[1760878185749,0.72,188.92,188.85,32.46520783]
[1760878185919,0.72,188.91,188.86,26.84]
[1760878186447,0.72,188.9,188.85,5.29520783]
[1760878186622,0.72,188.89,188.86,26.84]
[1760878186823,0.72,188.88,188.86,26.84]
[1760878187056,0.72,188.87,188.86,26.84]
[1760878187720,0.72,188.9,188.86,32.13481415]
[1760878187926,0.72,188.89,188.86,32.13481415]
[1760878188622,0.72,188.94,188.87,0.33]
[1760878189543,0.72,188.94,188.88,5.29436679]
[1760878189733,0.72,188.94,188.89,26.84]
[1760878190327,28.17219398,188.96,188.89,26.84]
[1760878190534,0.69,188.93,188.89,26.84]
[1760878192324,0.69,188.93,188.89,32.13385167]
[1760878193451,0.66155067,188.95,188.89,26.84]
[1760878193651,0.69,188.92,188.9,26.86]
[1760878193851,0.69,188.91,188.9,26.86]
[1760878194028,0.69,188.93,188.89,26.86]
[1760878194429,0.69,188.93,188.9,5.29380624]
[1760878194932,0.69,188.95,188.9,5.29380624]
[1760878195146,0.69,188.94,188.9,5.29380624]
[1760878195450,1.55137566,189.0,188.91,11.20647521]
[1760878195640,0.89,189.0,188.92,27.19]
[1760878195837,0.2,189.0,188.93,0.33]
[1760878196152,0.69,188.99,188.93,0.33]
[1760878196328,0.69,188.99,188.94,5.2926855]
[1760878196528,0.69,188.99,188.95,26.86]
[1760878197346,0.69,188.99,188.95,32.15219863]
[1760878200647,0.69,188.98,188.95,32.15219863]
[1760878200839,0.89,189.0,188.95,32.15219863]
[1760878201035,0.89,189.0,188.95,32.48219863]
[1760878201348,0.89,189.0,188.95,93.88219863]
[1760878201547,0.2,189.0,188.95,93.88219863]
[1760878201748,0.69,188.99,188.95,93.55219863]
[1760878202653,0.69,188.98,188.95,88.26]
[1760878202855,0.69,188.97,188.95,88.24]
[1760878203155,0.69,188.96,188.95,88.24]
[1760878203454,0.69,188.96,188.95,61.4]
[1760878206279,5.98212531,188.96,188.89,5.29384961]
[1760878206446,1.35155067,188.95,188.89,32.13384961]
[1760878206965,0.69,188.94,188.89,32.13384961]
[1760878207135,0.69,188.93,188.89,32.13384961]
[1760878211064,0.69,188.92,188.89,26.84]
[1760878212362,0.69,188.92,188.89,32.13404787]
[1760878214076,0.69,188.92,188.88,5.29436679]
[1760878214246,0.69,188.92,188.89,26.84]
[1760878214566,0.69,188.92,188.88,5.62436679]
[1760878214867,0.69,188.92,188.89,26.84]
[1760878215273,0.69,188.92,188.89,32.13401058]
[1760878215866,0.67,188.93,188.89,32.13401058]
[1760878216070,0.67,188.93,188.89,32.46401058]
[1760878216259,0.67,188.95,188.9,0.33]
[1760878216568,36.10906796,188.98,188.89,32.13401058]
[1760878216569,23.55,188.98,188.91,0.33]
[1760878216873,22.88,188.98,188.92,26.84]
[1760878217057,22.88,188.98,188.93,0.33]
[1760878217257,22.88,188.98,188.95,5.29240539]
[1760878217457,22.88,188.98,188.95,32.13240539]
[1760878217768,0.2,189.0,188.96,0.33]
[1760878219270,0.2,189.0,188.97,5.29184526]
[1760878220281,0.87,189.0,188.97,5.29184526]
[1760878220485,0.87,189.0,188.96,5.29212531]
[1760878223074,0.67,188.99,188.96,5.29212531]
[1760878223367,0.67,188.98,188.95,5.29237714]
[1760878223680,0.67,188.97,188.96,26.84]
[1760878224255,0.67,188.97,188.94,26.84]
[1760878224554,0.67,188.98,188.94,26.84]
[1760878225057,23.74137566,189.0,188.94,26.84]
[1760878225287,0.67,188.98,188.95,5.29240539]
[1760878225776,0.67,188.97,188.95,5.29240539]
[1760878226358,0.67,188.99,188.95,5.29240539]
[1760878226558,0.67,188.98,188.95,5.29240539]
[1760878228561,0.67,188.97,188.95,5.29240539]
[1760878228784,0.67,188.96,188.95,5.29240539]
[1760878228966,29.03239042,189.0,188.95,5.29240539]
[1760878229168,0.67,188.98,188.95,5.29240539]
[1760878229466,0.67,188.97,188.95,5.29240539]
[1760878231780,5.29130157,188.99,188.94,32.13265363]
[1760878231992,0.67,188.96,188.94,32.13265363]
[1760878232562,0.67,188.97,188.94,32.13265363]
[1760878233271,0.67,188.96,188.92,88.24]
[1760878233477,0.67,188.95,188.92,93.53317948]
[1760878233677,0.67,188.95,188.92,32.13317948]
[1760878234682,0.67,188.94,188.92,32.13317948]
[1760878235990,0.67,188.93,188.92,5.29317948]
[1760878236191,0.67,188.93,188.9,5.29380624]
[1760878236392,0.67,188.93,188.9,32.13380624]
[1760878236708,0.67,188.92,188.87,5.29464711]
[1760878236891,22.88,188.94,188.87,32.13464711]
[1760878236892,0.67,188.91,188.87,32.13464711]
[1760878237499,0.67,188.9,188.87,32.13464711]
[1760878237796,0.6616207,188.93,188.87,32.13464711]
[1760878237965,0.67,188.89,188.86,32.13491675]
[1760878241388,22.88,188.9,188.86,32.13491675]
[1760878241878,23.55,188.9,188.86,32.13491675]
[1760878243897,0.67,188.9,188.86,32.13491675]
[1760878244273,23.55,188.9,188.86,32.13491675]
[1760878245589,22.88,188.9,188.86,32.13491675]
[1760878245791,22.88,188.9,188.86,26.84]
[1760878246095,22.88,188.9,188.86,27.17]
[1760878246684,0.67,188.91,188.86,27.17]
[1760878246993,0.66165572,188.92,188.86,27.17]
[1760878247194,0.67,188.91,188.86,27.17]
[1760878247388,0.67,188.9,188.86,32.46489663]
[1760878247687,5.95294157,188.99,188.87,11.20647521]
[1760878247866,5.95294157,188.99,188.88,11.20647521]
[1760878247867,0.67,188.98,188.88,11.20647521]
[1760878248068,1.53137566,189.0,188.89,27.17]
[1760878248291,0.67,188.99,188.9,11.20647521]
[1760878248497,0.67,188.99,188.91,0.33]
[1760878248674,0.67,188.99,188.92,26.84]
[1760878248875,0.67,188.98,188.92,27.17]
[1760878249403,0.2,189.0,188.93,0.33]
[1760878249608,0.2,189.0,188.95,10.87647521]
[1760878249776,0.2,189.0,188.96,27.17]
[1760878250204,0.2,189.0,188.97,0.33]
[1760878250580,0.2,189.0,188.98,0.33]
[1760878250917,0.2,189.0,188.96,27.17]
[1760878251719,0.2,189.0,188.97,5.29184526]
[1760878253510,0.2,189.0,188.95,5.29217128]
[1760878253707,0.67,188.99,188.96,26.84]
[1760878254019,0.67,188.98,188.96,26.84]
[1760878254225,0.2,189.0,188.96,26.84]
[1760878254404,0.67,188.99,188.96,26.84]
[1760878254722,0.67,188.99,188.96,32.13207404]
[1760878255714,6.15242162,189.0,188.94,5.29246843]
[1760878255897,0.67,188.98,188.94,32.13246843]
[1760878256221,0.67,188.97,188.94,32.13246843]
[1760878258017,6.15242162,189.0,188.94,32.13246843]
[1760878258226,0.67,188.99,188.94,32.13246843]
[1760878258708,0.67,188.98,188.94,32.13246843]
[1760878258908,0.67,188.97,188.94,32.13246843]
[1760878259299,0.67,188.97,188.94,5.29246843]
[1760878260521,0.67,188.96,188.94,5.29246843]
[1760878260919,0.67,188.98,188.94,5.29246843]
[1760878261109,0.67,188.97,188.94,5.29246843]
[1760878262424,29.04100792,189.0,188.94,5.62246843]
[1760878262718,1.33141065,188.99,188.94,5.29246843]
[1760878262922,0.67,188.98,188.94,5.29246843]
[1760878264221,0.67,188.97,188.93,26.84]
[1760878264528,5.95270743,188.99,188.93,26.84]
[1760878264529,0.67,188.96,188.93,26.84]
[1760878264913,0.67,188.96,188.93,32.13292539]
[1760878265309,0.67,188.98,188.93,32.13292539]
[1760878265708,0.67,188.97,188.93,32.13292539]
[1760878267323,6.62270743,188.99,188.93,32.46292539]
[1760878267523,5.95270743,188.99,188.93,32.44292539]
[1760878267827,0.67,188.98,188.93,32.44292539]
[1760878268238,0.67,188.97,188.93,32.44292539]
[1760878268418,0.67,188.97,188.93,5.62292539]
[1760878268727,5.95270743,188.99,188.93,5.62292539]
[1760878269029,0.67,188.97,188.93,32.44292539]
[1760878269231,6.62270743,188.99,188.94,0.33]
[1760878269428,0.2,189.0,188.95,0.33]
[1760878271331,0.2,189.0,188.96,5.29212531]
[1760878271502,0.2,189.0,188.97,27.15]
[1760878272323,0.2,189.0,188.97,32.44176559]
[1760878273133,0.2,189.0,188.97,32.11176559]
[1760878273321,0.2,189.0,188.98,0.33]
[1760878273527,0.2,189.0,188.99,0.33]
[1760878273731,0.2,189.0,188.97,107.07137875]
[1760878274415,0.2,189.0,188.97,106.74137875]
[1760878275036,0.2,189.0,188.97,107.07137875]
[1760878278119,0.2,189.0,188.97,45.67137875]
[1760878278627,0.2,189.0,188.98,0.33]
[1760878278823,0.2,189.0,188.99,0.33]
[1760878279230,0.2,189.0,188.97,45.34137875]
[1760878279425,0.2,189.0,188.98,0.33]
[1760878279738,0.2,189.0,188.99,5.29128525]
[1760878281628,0.2,189.0,188.98,5.29156524]
[1760878283026,0.2,189.0,188.99,0.33]
[1760878283937,0.2,189.0,188.99,61.73]
[1760878284436,0.2,189.0,188.99,61.4]
[1760878285034,0.2,189.0,188.99,66.69128525]
[1760878285451,0.2,189.0,188.99,67.02128525]
[1760878285819,0.2,189.0,188.99,16.49776046]
[1760878286356,0.71,189.09,189.0,10.87647521]
[1760878286639,0.71,189.09,189.02,10.87647521]
[1760878286814,0.2,189.1,189.02,10.87647521]
[1760878287018,0.2,189.1,189.04,10.87647521]
[1760878287219,0.2,189.1,189.05,26.82]
[1760878287430,0.2,189.1,189.05,27.15]
[1760878287631,0.2,189.1,189.06,0.33]
[1760878288318,0.2,189.1,189.07,18.51166234]
[1760878288532,0.2,189.1,189.08,26.82]
[1760878289557,0.2,189.1,189.09,5.28848696]
[1760878290944,0.2,189.1,189.09,5.61848696]
[1760878291530,0.2,189.1,189.09,5.28848696]
[1760878291945,0.2,189.1,189.09,32.08848696]
[1760878292752,1e-08,189.1,189.09,120.35069991]
[1760878292954,1e-08,189.1,189.09,93.55069991]
[1760878293159,1e-08,189.1,189.09,120.35069991]
[1760878294559,1e-08,189.1,189.09,58.95069991]
[1760878297148,1e-08,189.1,189.09,31.82069991]
[1760878297349,1e-08,189.1,189.09,58.95069991]
[1760878298637,1e-08,189.1,189.09,120.35069991]
[1760878299561,1e-08,189.1,189.09,93.22069991]
[1760878299742,1e-08,189.1,189.09,120.02069991]
[1760878300371,1e-08,189.1,189.09,93.22069991]
[1760878300547,1e-08,189.1,189.09,82.3442247]
[1760878300746,0.71000001,189.1,189.09,109.1442247]
[1760878300969,0.2,189.13,189.09,120.35069991]
[1760878301259,0.2,189.15,189.1,11.20647521]
[1760878301455,0.2,189.15,189.1,72.60647521]
[1760878301759,0.2,189.15,189.11,0.33]
[1760878301948,0.2,189.15,189.13,10.87647521]
[1760878302750,0.2,189.15,189.14,0.33]
[1760878302942,0.2,189.15,189.14,32.41708892]
[1760878303446,1e-08,189.15,189.14,43.29356413]
[1760878304663,1e-08,189.15,189.14,42.96356413]
[1760878305240,1e-08,189.15,189.14,32.08708892]
[1760878305768,1e-08,189.15,189.14,42.96356413]
[1760878307654,1e-08,189.15,189.14,104.36356413]
[1760878311272,0.69000001,189.15,189.14,66.68708892]
[1760878311443,0.69000001,189.15,189.14,93.46708892]
[1760878311885,1e-08,189.15,189.14,93.46708892]
[1760878312668,0.2,189.18,189.17,22.88]
[1760878312967,0.2,189.18,189.17,49.66]
[1760878313461,0.2,189.18,189.17,93.46625046]
[1760878315174,0.89,189.18,189.17,93.46625046]
[1760878317969,0.2,189.18,189.17,93.46625046]
[1760878318675,0.89,189.18,189.17,93.46625046]
[1760878318869,0.2,189.18,189.17,93.46625046]
[1760878323983,0.89,189.18,189.17,93.46625046]
[1760878324284,0.2,189.18,189.17,93.46625046]
[1760878324488,0.2,189.19,189.18,10.87647521]
[1760878324671,0.2,189.19,189.18,61.4]
[1760878324876,0.89,189.19,189.18,61.4]
[1760878325068,0.89,189.19,189.18,66.68597103]
[1760878325384,0.89,189.19,189.18,93.46597103]
[1760878325683,0.89,189.19,189.18,66.68597103]
[1760878325986,0.89,189.19,189.18,93.46597103]
[1760878325987,0.2,189.19,189.18,93.46597103]
[1760878326665,0.89,189.19,189.18,66.68597103]
[1760878326976,0.89,189.19,189.18,93.46597103]
[1760878327884,0.89,189.19,189.18,66.68597103]
[1760878328069,0.89,189.19,189.18,93.46597103]
[1760878328271,0.89,189.19,189.18,32.06597103]
[1760878328486,0.89,189.19,189.18,26.78]
[1760878329790,0.89,189.19,189.18,5.28597103]
[1760878329991,0.89,189.19,189.18,32.06597103]
[1760878331079,0.89,189.19,189.17,5.28621435]
[1760878331281,0.68,189.18,189.17,32.06621435]
[1760878334285,0.68,189.18,189.17,26.78]
[1760878335004,0.68,189.18,189.12,13.21851959]
[1760878335293,0.71,189.17,189.13,26.78]
[1760878335490,0.71,189.16,189.13,26.78]